[Event "Indian Blitz Championship 2023"]
[Site "Nashik"]
[Date "2024.03.07"]
[Round "11.7"]
[White "Sai Agni Jeevitesh, J."]
[Black "Srihari L R"]
[Result "1/2-1/2"]
[ECO "A80"]
[WhiteElo "2285"]
[BlackElo "2490"]
[Annotator "TA"]
[PlyCount "92"]
[EventDate "2024.03.07"]
[EventType "blitz"]
[EventCountry "IND"]
[SourceTitle "playchess.com"]
[Source "ChessBase"]
[SourceQuality "1"]
[TimeControl "180+2"]

{[%evp 9,92,21,22,22,40,39,37,27,50,45,62,30,50,56,66,36,36,39,35,38,39,0,0,0,0,0,0,0,0,-5,0,0,0,-3,0,-105,-92,-182,-188,-196,-196,-195,-193,-191,-191,-175,-170,-213,-208,-187,-206,-271,-8,-8,0,0,0,0,0,0,0,-77,0,0,0,0,0,0,0,0,0,0,0,0,0,0,0,0,0,0,0,-137,0,0,0]} 1. d4 {[%emt 0:00:01]} e6 {[%emt 0:00:11]} 2. Nf3 {[%emt 0:00:10]} f5 {[%emt 0:00:01]} 3. Bf4 {[%emt 0:00:09]} Nf6 {[%emt 0:00:02]} 4. e3 {[%emt 0:00:01]} b6 {[%emt 0:00:08]} 5. Be2 {[%emt 0:00:08]} Bb7 {[%emt 0:00:01]} 6. O-O {[%emt 0:00:02]} Bd6 {[%emt 0:00:01]} 7. Bxd6 {[%emt 0:00:17]} cxd6 {[%emt 0:00:01]} 8. c4 {[%emt 0:00:01][%cal Od4d5] White is slightly better.} O-O {[%emt 0:00:07]} 9. Nc3 {[%emt 0:00:00]} d5 {[%emt 0:00:00]} 10. Rc1 {[%emt 0:00:19]} Qe7 {[%emt 0:00:43]} 11. cxd5 {[%emt 0:00:03]} Nxd5 {[%emt 0:00:02]} 12. Nxd5 {[%emt 0:00:04]} Bxd5 {[%emt 0:00:02]} 13. Bc4 {[%emt 0:00:02]} Qd6 {[%emt 0:00:46]} 14. Bxd5 {[%emt 0:00:42]} Qxd5 {[%emt 0:00:01]} 15. Qb3 {[%emt 0:00:01]} Qxb3 {[%emt 0:00:12]} 16. axb3 {[%emt 0:00:01]} Nc6 {[%emt 0:00:01]} 17. Ne5 {[%emt 0:00:01]} Nxe5 {[%emt 0:00:02]} 18. dxe5 $11 {[%emt 0:00:01][%mdl 4096] Endgame. KRR-KRR} Rfc8 {[%emt 0:00:00] Prevents Rc7.} 19. b4 {[%emt 0:00:05]} Kf8 {[%emt 0:00:17]} 20. f4 {[%emt 0:00:06]} Ke7 {[%emt 0:00:02]} 21. Kf2 {[%emt 0:00:01]} a5 {[%emt 0:00:05]} 22. b5 {[%emt 0:00:17]} (22. bxa5 $11 bxa5 23. b3) 22... a4 {[%emt 0:00:05]} 23. Ke2 {[%emt 0:00:05]} (23. Rc3 $17 {was necessary.}) 23... Rxc1 $1 $19 {[%emt 0:00:02]} 24. Rxc1 {[%emt 0:00:00] KR-KR} Ra5 {[%emt 0:00:01]} 25. Rc4 {[%emt 0:00:13]} Rxb5 {[%emt 0:00:03]} 26. Rxa4 {[%emt 0:00:01]} Rxb2+ {[%emt 0:00:01]} 27. Kf3 {[%emt 0:00:01]} h6 {[%emt 0:00:05]} 28. h4 {[%emt 0:00:11]} h5 {[%emt 0:00:24]} 29. Ra8 {[%emt 0:00:01]} b5 {[%emt 0:00:11]} 30. Rg8 {[%emt 0:00:06] [#]} Kf7 $2 {[%emt 0:00:01]} (30... b4 $1 $19 {Strongly threatening ...b3.} 31. Rb8 b3) 31. Rd8 $1 $11 {[%emt 0:00:01]} Rd2 {[%emt 0:00:01]} 32. Rb8 {[%emt 0:00:01]} Rd5 {[%emt 0:00:01]} 33. Rb7 {[%emt 0:00:10]} Ke8 {[%emt 0:00:04] Hoping for ...Kd8.} 34. Rb8+ {[%emt 0:00:02]} Ke7 {[%emt 0:00:05]} 35. Rg8 {[%emt 0:00:02]} (35. Ke2 $11 {remains equal.}) 35... Kf7 {[%emt 0:00:11]} ({Black should try} 35... Rd1 $17 {White must now prevent ...Kf7.} 36. Ke2 Rh1 (36... Kf7 $2 37. Rxg7+ Kxg7 38. Kxd1 $18)) 36. Rb8 {[%emt 0:00:00]} Kg6 {[%emt 0:00:05]} 37. Rb7 {[%emt 0:00:04]} Kh6 {[%emt 0:00:02]} 38. Rb8 {[%emt 0:00:01]} Kh7 {[%emt 0:00:02]} 39. Rb7 {[%emt 0:00:01]} Kg6 {[%emt 0:00:02]} 40. Rb8 {[%emt 0:00:01]} Kf7 {[%emt 0:00:01]} 41. Rb7 {[%emt 0:00:01]} g6 {[%emt 0:00:02]} 42. Rb8 {[%emt 0:00:01]} Rc5 {[%emt 0:00:06]} 43. Rb7 {[%emt 0:00:07]} Ke7 {[%emt 0:00:02]} (43... Ke8 $5 44. Rb8+ $8 Ke7 $11) 44. Rb8 {[%emt 0:00:02]} Rd5 {[%emt 0:00:03]} 45. Rg8 {[%emt 0:00:03] [#]} (45. Ke2 $11) 45... b4 {[%emt 0:00:01]} (45... Rd2 $1 $17 {Threatens to win with ...b4.} 46. Kg3 (46. Rg7+ $2 Kd8 $19) 46... b4) 46. Rb8 $1 {[%emt 0:00:01]} Rc5 {[%emt 0:00:03] And White is the lucky defender.   Weighted Error Value: White=0.26 (precise) /Black=0.26 (precise) .  Missed win:     	---       	Black=1      Mistake:       	White=4     	Black=2      Inaccurate:     	White=4     	---        OK:         	White=17    	Black=13     Best:        	White=2     	Black=2      Strong:       	White=2     	Black=1} 1/2-1/2

[Event "Indian Blitz Championship 2023"]
[Site "Nashik"]
[Date "2024.03.07"]
[Round "11.8"]
[White "Vignesh B"]
[Black "Karthik Venkataraman"]
[Result "0-1"]
[ECO "C01"]
[WhiteElo "2209"]
[BlackElo "2609"]
[Annotator "TA"]
[PlyCount "49"]
[EventDate "2024.03.07"]
[EventType "blitz"]
[EventCountry "IND"]
[SourceTitle "playchess.com"]
[Source "ChessBase"]
[SourceQuality "1"]
[TimeControl "180+2"]

{[%evp 10,49,0,-11,0,0,0,-21,0,0,0,-11,-17,-41,-23,-32,-10,-39,-25,-68,-22,-27,-12,-26,-29,-38,-38,-30,-30,-53,-18,-39,-52,-69,-43,-352,-22,-13,-33,-60,-76,-78]} 1. e4 {[%emt 0:00:02]} e6 {[%emt 0:00:01]} 2. d4 {[%emt 0:00:05]} d5 {[%emt 0:00:02]} 3. Bd3 {[%emt 0:00:01]} c5 {[%emt 0:00:06]} 4. exd5 {[%emt 0:00:18]} exd5 {[%emt 0:00:01]} 5. dxc5 {[%emt 0:00:07]} Bxc5 {[%emt 0:00:01]} 6. Ne2 {[%emt 0:00:10]} Nf6 {[%emt 0:00:03]} 7. O-O {[%emt 0:00:06]} h6 {[%emt 0:00:06] Gegen Bg5 gerichtet.} 8. c3 {[%emt 0:00:08]} Nc6 {[%emt 0:00:02] Die Stellung ist ausgeglichen.} 9. Nd2 {[%emt 0:00:13]} O-O {[%emt 0:00:05]} 10. Nb3 {[%emt 0:00:07]} Bb6 {[%emt 0:00:02]} 11. Ng3 {[%emt 0:00:10]} Ng4 {[%emt 0:00:19] ...Qh4 wäre nun fies.} 12. Bf5 {[%emt 0:01:10]} Nge5 {[%emt 0:01:12]} 13. Bxc8 {[%emt 0:00:12]} Rxc8 {[%emt 0:00:01]} 14. Bf4 {[%emt 0:00:08]} Qf6 {[%emt 0:00:12]} (14... Nc4 $15 {kam in Betracht.}) 15. Bxe5 $11 {[%emt 0:00:10]} Qxe5 {[%emt 0:00:01]} 16. Qf3 {[%emt 0:00:02]} Rfe8 {[%emt 0:00:06]} 17. Rad1 {[%emt 0:00:08]} Rcd8 {[%emt 0:00:01]} 18. Nf5 {[%emt 0:00:04]} Qf6 {[%emt 0:01:17]} 19. Nfd4 {[%emt 0:00:09]} Qg6 {[%emt 0:00:00]} (19... Nxd4 {vereinfacht} 20. Nxd4 Qxf3 21. gxf3 Bxd4 22. Rxd4 Re2) 20. Rfe1 {[%emt 0:00:04]} (20. Qd3 {vereinfacht} Qxd3 21. Rxd3 Ne5 22. Rd2) 20... Ne5 {[%emt 0:00:00]} 21. Qe2 {[%emt 0:00:04]} Kh7 {[%emt 0:00:00][%cal Oe5d3] Schwarz steht aktiver.} (21... Nd3 $5 22. Qxe8+ Rxe8 23. Rxe8+ Kh7 $11) 22. Qc2 $2 {[%emt 0:00:03][%mdl 8192] [#]} (22. Qd2 $15) 22... Qxc2 $2 {[%emt 0:00:00]} ({Vorzuziehen ist} 22... Nf3+ $1 $19 23. Kf1 Nxh2+ (23... Nxe1 $2 24. Qxg6+ Kxg6 25. Rxe1 $19) (23... Rxe1+ $2 24. Rxe1 Nxe1 25. Qxg6+ fxg6 26. Kxe1 $19) 24. Kg1 Nf3+ 25. Kf1 Rxe1+ (25... Nxe1 $2 26. Qxg6+ Kxg6 27. Rxe1 $19) 26. Rxe1 Nxe1 27. Qxg6+ fxg6 (27... Kxg6 $2 28. Kxe1 a5 29. Ne2 $19) 28. Kxe1 Re8+ 29. Kf1 g5 (29... Bxd4 $2 30. Nxd4 g5 31. a3 $19)) 23. Nxc2 {[%emt 0:00:01] Ein dynamisches Springerpaar.} Nc4 {[%emt 0:00:00]} 24. Rxe8 {[%emt 0:00:02]} Rxe8 {[%emt 0:00:00]} 25. Kf1 {[%emt 0:00:08] Lässt Re2 nicht zu.   Gewichteter Fehlerwert: Weiß=0.36/Schwarz=0.33.  Verlustzug:     	Weiß=1     	---        Gewinn verpasst:   	---       	Schwarz=1     Fehler:       	---       	Schwarz=1     Ungenau:       	Weiß=3     	Schwarz=2     OK:         	Weiß=3     	Schwarz=6     Bester:       	Weiß=1     	---} 0-1

[Event "Indian Blitz Championship 2023"]
[Site "Nashik"]
[Date "2024.03.07"]
[Round "11.9"]
[White "Garv Rai"]
[Black "Sengupta, Deep"]
[Result "0-1"]
[ECO "A40"]
[WhiteElo "2241"]
[BlackElo "2500"]
[Annotator "TA"]
[PlyCount "72"]
[EventDate "2024.03.07"]
[EventType "blitz"]
[EventCountry "IND"]
[SourceTitle "playchess.com"]
[Source "ChessBase"]
[SourceQuality "1"]
[TimeControl "180+2"]

{[%evp 9,72,0,31,27,33,0,27,28,47,23,18,15,49,37,54,30,46,31,61,62,63,63,60,35,35,16,56,63,17,-3,0,0,2,-38,-36,-59,-53,-129,-123,-137,-135,-139,-143,-186,-58,-35,-35,-29,30,-29,-5,-8,98,0,0,-2059,-1981,-1137,-1016,-978,-756,-29977,-29978,-29975,-598]} 1. d4 {[%emt 0:00:01]} b6 {[%emt 0:00:01]} 2. Bf4 {[%emt 0:00:02]} Bb7 {[%emt 0:00:01]} 3. e3 {[%emt 0:00:03]} g6 {[%emt 0:00:07]} 4. Nf3 {[%emt 0:00:02]} Bg7 {[%emt 0:00:01]} 5. h4 {[%emt 0:00:02]} h6 {[%emt 0:00:03]} 6. Nc3 {[%emt 0:00:04]} Nf6 {[%emt 0:00:02] Against e4} 7. Bd3 {[%emt 0:00:04]} d6 {[%emt 0:00:05]} 8. e4 {[%emt 0:00:02] White has an edge.} Nbd7 {[%emt 0:00:02][%cal Oe7e5]} 9. Qd2 {[%emt 0:00:03]} c5 {[%emt 0:00:11]} 10. d5 {[%emt 0:00:14]} a6 {[%emt 0:00:05]} 11. a4 {[%emt 0:00:02]} Ng4 {[%emt 0:00:05]} 12. Bg3 {[%emt 0:00:24]} O-O {[%emt 0:00:29][%cal Ob6b5]} 13. O-O {[%emt 0:00:03]} (13. h5 $5) 13... Nge5 {[%emt 0:00:05]} 14. Nxe5 {[%emt 0:00:04]} Nxe5 {[%emt 0:00:01]} 15. Be2 {[%emt 0:00:13]} Bc8 {[%emt 0:00:19]} 16. f4 {[%emt 0:00:04]} Ng4 {[%emt 0:00:03]} 17. Rae1 {[%emt 0:00:20]} f5 {[%emt 0:00:34]} 18. Bxg4 {[%emt 0:00:07]} fxg4 {[%emt 0:00:02]} 19. e5 {[%emt 0:00:01][%cal Oh4h5]} Bf5 {[%emt 0:00:05]} 20. Nd1 {[%emt 0:00:18]} Qd7 {[%emt 0:00:23]} 21. Ne3 {[%emt 0:00:04]} Qxa4 {[%emt 0:00:03]} 22. b3 {[%emt 0:00:22]} Qd4 {[%emt 0:00:04]} 23. Qxd4 {[%emt 0:00:13]} (23. Qc1 $15) 23... cxd4 $17 {[%emt 0:00:01]} 24. Nxf5 {[%emt 0:00:11]} Rxf5 {[%emt 0:00:06]} 25. Re4 {[%emt 0:00:11]} Rc8 {[%emt 0:00:02]} 26. Rf2 {[%emt 0:00:05]} dxe5 {[%emt 0:00:02]} (26... Rc3 $19 27. Kh2 dxe5 28. fxe5 Rxf2 29. Bxf2 d3 (29... Rxc2 30. Bxd4 Rd2 31. Bxb6 $17) 30. cxd3 Rxd3 (30... Rxb3 31. d4 $11) 31. Bxb6 Rxd5 (31... Rxb3 32. Bc7 $17) 32. Rxg4 Bxe5+ (32... Rxe5 33. Rxg6 Re4 34. g3 $11) 33. g3 Kf7) 27. fxe5 $15 {[%emt 0:00:02]} Rxf2 {[%emt 0:00:02]} 28. Bxf2 {[%emt 0:00:02]} Rxc2 {[%emt 0:00:02]} ({Better is} 28... h5) 29. Bxd4 $19 {[%emt 0:00:02][%mdl 4096] Endgame. KRB-KRB} (29. d6 $142 $1 exd6 30. exd6) 29... g3 {[%emt 0:00:02] [#] ( -> ...Rc1+)} (29... h5 $5) 30. Kf1 $1 {[%emt 0:00:05][%cal Od4e3]} Rd2 {[%emt 0:00:03]} (30... Rc7 $11) 31. d6 {[%emt 0:00:13]} ({White should play} 31. Ke1 $1 $16 {[%cal Re1d2]} Rc2 (31... Rxg2 $2 32. d6 $18) 32. Rg4) 31... exd6 $11 {[%emt 0:00:02] Hoping for ...Bxe5.} 32. e6 {[%emt 0:00:01][%mdl 8192]} Rxd4 $19 {[%emt 0:00:07]} 33. Re3 {[%emt 0:00:07]} Kf8 {[%emt 0:00:03] And now ...Be5 would win.} (33... Rxh4 34. e7 Rf4+ 35. Ke2 $16) 34. Rxg3 {[%emt 0:00:02]} Rf4+ {[%emt 0:00:03]} 35. Kg1 {[%emt 0:00:05]} Bd4+ {[%emt 0:00:02]} 36. Kh2 {[%emt 0:00:02]} Rxh4+ {[%emt 0:00:03] Weighted Error Value: White=0.61/Black=0.35.  Loses game:     	White=1     	---        Mistake:       	White=3     	Black=3      Inaccurate:     	White=3     	Black=4      OK:         	White=6     	Black=6      Best:        	White=2     	Black=4      Strong:       	White=1     	---} 0-1

[Event "Indian Blitz Championship 2023"]
[Site "Nashik"]
[Date "2024.03.07"]
[Round "11.10"]
[White "Ratnakaran, K.."]
[Black "Jinan Jomon"]
[Result "1-0"]
[ECO "A01"]
[WhiteElo "2258"]
[BlackElo "2380"]
[Annotator "TA"]
[PlyCount "108"]
[EventDate "2024.03.07"]
[EventType "blitz"]
[EventCountry "IND"]
[SourceTitle "playchess.com"]
[Source "ChessBase"]
[SourceQuality "1"]
[TimeControl "180+2"]

{[%evp 9,108,-4,12,4,47,39,36,41,46,32,35,16,34,14,23,21,29,26,29,35,33,30,32,36,26,-12,0,-16,-23,-6,-28,-43,-40,-123,-120,-180,-173,-156,-154,-185,-160,-254,-273,-253,-126,-119,-123,-130,-129,-124,-121,-145,-149,-157,-145,-190,-177,-312,-294,-456,-449,-537,-544,-796,-754,-895,-891,-1025,-1057,-1410,-1406,-1168,-719,-2098,-3942,-5365,-5336,-5297,-5289,-29989,-570,-521,-486,-431,-413,-424,-417,-384,-358,-951,-918,-885,-278,-514,-232,-225,-34,-34,-37,-34,135]} 1. b3 {[%emt 0:00:01]} d5 {[%emt 0:00:01]} 2. Bb2 {[%emt 0:00:01]} Bf5 {[%emt 0:00:02]} 3. d3 {[%emt 0:00:00]} e6 {[%emt 0:00:03]} 4. Nd2 {[%emt 0:00:01]} Nf6 {[%emt 0:00:02]} 5. g3 {[%emt 0:00:01]} Be7 {[%emt 0:00:06]} 6. Bg2 {[%emt 0:00:02]} c6 {[%emt 0:00:07]} 7. e4 {[%emt 0:00:03]} Bg6 {[%emt 0:00:06]} 8. Ne2 {[%emt 0:00:03] Weiß steht etwas besser.} h6 {[%emt 0:00:08]} 9. O-O {[%emt 0:00:03]} O-O {[%emt 0:00:14]} 10. h3 {[%emt 0:00:02]} Qb6 {[%emt 0:00:12]} 11. Kh2 {[%emt 0:00:02]} dxe4 {[%emt 0:00:14]} 12. dxe4 {[%emt 0:00:02]} Rd8 {[%emt 0:00:12][%cal Og6e4]} 13. Qe1 {[%emt 0:00:05]} Na6 {[%emt 0:00:27]} 14. Nc4 {[%emt 0:00:05]} Qc7 {[%emt 0:00:03]} 15. Nf4 {[%emt 0:00:09]} Bh7 {[%emt 0:00:03]} 16. Be5 {[%emt 0:00:21]} Qc8 {[%emt 0:00:02]} 17. Qe2 {[%emt 0:00:14]} Nc5 {[%emt 0:00:03][%cal Rc5e4]} 18. Bxf6 {[%emt 0:00:06]} Bxf6 {[%emt 0:00:03]} 19. e5 {[%emt 0:00:00]} Be7 {[%emt 0:00:02]} 20. Rad1 {[%emt 0:00:02]} Qc7 {[%emt 0:00:08] Gegen Nd6 gerichtet.} 21. b4 {[%emt 0:00:02]} (21. a4 $15) 21... Na4 $17 {[%emt 0:00:04]} 22. Nd6 {[%emt 0:00:24]} Bxd6 $19 {[%emt 0:00:32]} 23. exd6 {[%emt 0:00:04]} Rxd6 {[%emt 0:00:03]} 24. Qe5 {[%emt 0:00:32] Gegen Nc3 gerichtet.} Rad8 {[%emt 0:00:02]} 25. Rxd6 {[%emt 0:00:15]} (25. c4 $17 {kämpft weiter.} Qe7 26. Rxd6 Qxd6 27. Qa5) 25... Qxd6 {[%emt 0:00:05]} (25... Rxd6 $2 26. Rd1 $18) 26. Qa5 {[%emt 0:00:01]} Nb6 {[%emt 0:00:05]} (26... Bxc2 $19 {Zielt auf ...e5 ab.} 27. Rc1 Bd1 28. Qxa7 Qxb4 29. Rxd1 Rxd1 30. Qa8+ Kh7) 27. Qxa7 $17 {[%emt 0:00:03] [#]} Qc7 {[%emt 0:00:03][%cal Od8a8] Weiss muss nun ...Ra8! beachten.} (27... Qxb4 28. Qxb7 Nd5 (28... Bxc2 29. Qxc6 Rc8 30. Qf3 $15) 29. Qxc6 (29. Qxb4 Nxb4 30. a3 Nxc2 $17) 29... Nxf4 30. Qc7 $15) 28. Qa5 {[%emt 0:00:17]} Bxc2 {[%emt 0:00:06]} 29. Rc1 {[%emt 0:00:00]} Bf5 {[%emt 0:00:04]} 30. b5 {[%emt 0:00:13]} c5 {[%emt 0:00:08]} 31. Qc3 {[%emt 0:00:05]} c4 {[%emt 0:00:08]} 32. Nh5 {[%emt 0:00:04][%csl Gh5][%cal Rc3g7] [#]} e5 {[%emt 0:00:03]} 33. Re1 {[%emt 0:00:04]} (33. a4 {war einen Versuch wert.} Bd3 (33... Nxa4 34. Qxc4 Qxc4 35. Rxc4 $17) 34. a5) 33... f6 {[%emt 0:00:09]} 34. f4 {[%emt 0:00:04]} (34. g4 $142 Rd3 35. Qb4) 34... Bg6 $19 {[%emt 0:00:03]} 35. Qf3 {[%emt 0:00:18]} c3 {[%emt 0:00:05]} 36. Nxf6+ {[%emt 0:00:06]} gxf6 {[%emt 0:00:02]} 37. fxe5 {[%emt 0:00:01]} fxe5 {[%emt 0:00:07]} 38. Rc1 {[%emt 0:00:07]} c2 {[%emt 0:00:02]} 39. Qg4 {[%emt 0:00:00]} Kh7 {[%emt 0:00:01] ...Rd2 ist eine echte Drohung.} 40. h4 {[%emt 0:00:19]} Qf7 {[%emt 0:00:02][%cal Od8d2]} 41. Be4 {[%emt 0:00:00]} Rd2+ {[%emt 0:00:01]} 42. Kh3 {[%emt 0:00:00]} Bxe4 {[%emt 0:00:02]} 43. Qxe4+ {[%emt 0:00:00]} Kh8 {[%emt 0:00:01]} 44. Rxc2 {[%emt 0:00:00]} Qd7+ {[%emt 0:00:01]} (44... Qf1+ $142 45. Kg4 Rd4 46. Qxd4 exd4 47. Rc5 d3 48. Rf5 Qd1+ 49. Kf4 d2 50. Rf8+ Kg7 51. Rd8 Qf1+ 52. Ke4 Qe2+ (52... d1=R 53. Rxd1 Qxd1 54. g4 Qd5+ 55. Ke3 Nc4+ 56. Kf2 Qd4+ 57. Kg3 Qe3+ 58. Kg2 Qf4 59. Kh3 Qf3+ 60. Kh2 Ne3 61. h5 Qg2#) 53. Kf4 Nc4 (53... d1=B 54. Rxd1 Qxd1 55. Ke3 Qd5 56. Kf2 Nc4 57. g4 Qd4+ 58. Kg3 Qe3+ 59. Kg2 Qf4 60. Kh3 Qf3+ 61. Kh2 Ne3 62. h5 Qg2#) 54. Rxd2 Qe3+ 55. Kg4 Nxd2 56. Kh3 Ne4 (56... Qe6+ 57. g4 Qe3+ 58. Kh2 Qf2+ 59. Kh3 Ne4 60. h5 Ng5#) 57. Kg4 Nf2+ 58. Kh5 Qe8#) 45. g4 {[%emt 0:00:00] Und Rxd2 würde nun gewinnen.} Qd3+ {[%emt 0:00:07]} 46. Qxd3 {[%emt 0:00:00]} Rxd3+ {[%emt 0:00:01][%mdl 4096] Endspiel. KRN-KR} 47. Kg2 {[%emt 0:00:00]} Nd5 {[%emt 0:00:06]} 48. Rc8+ {[%emt 0:00:00]} Kg7 {[%emt 0:00:01]} 49. Rb8 $2 {[%emt 0:00:00]} (49. Re8) 49... Nf4+ {[%emt 0:00:03]} 50. Kf2 {[%emt 0:00:00]} Rd7 $2 {[%emt 0:00:01]} (50... e4 {Droht ...e3+ und aus.} 51. Rxb7+ Kf8 52. Rb8+ Ke7) 51. a4 $2 {[%emt 0:00:00]} (51. Re8) 51... Nd5 {[%emt 0:00:02]} (51... Re7 $142 {Und jetzt ...e4 wäre schön.} 52. Kg3 Ne2+ 53. Kf2 Nc3) 52. a5 {[%emt 0:00:00]} Nc3 $2 {[%emt 0:00:02]} ({Günstiger ist} 52... Nf6 $19 53. Kg3 Kg6) 53. a6 $15 {[%emt 0:00:02]} bxa6 {[%emt 0:00:04]} ({Doch nicht} 53... Nxb5 $6 54. axb7 (54. Rxb7 Rf7+ 55. Ke3 Nc7 $11) 54... Nd6 55. Rg8+ Kxg8 56. b8=Q+ (56. b8=B $2 {verliert.} Nc4 $19) 56... Kg7 57. Kg3 $14) 54. bxa6 {[%emt 0:00:00]} Kf7 $2 {[%emt 0:00:03] Gewichteter Fehlerwert: Weiß=0.82/Schwarz=0.22 (präzise) .  Gewinn verpasst:   	---       	Schwarz=1     Fehler:       	Weiß=6     	Schwarz=2     Ungenau:       	Weiß=2     	Schwarz=1     OK:         	Weiß=10    	Schwarz=24    Bester:       	Weiß=3     	---} (54... Rd2+ $15 {behält die Oberhand.} 55. Ke3 Ra2 56. Rb7+ Kf6 57. Rb6+ Ke7 58. Rxh6 Nb5) 1-0